"Anno";"Comp./Res.";"Tipo";"Data Mov.";"Progr.";"Causale";"Capitolo";"Articolo";"DebitoreFornitore";"Importo";"Iva sp";"Inps";"Irpef";"Netto";"Modalita Pagamento";"ValidoAnnullato";"Note";"Anno imp. /acc.";"Imp. /Acc."
"2023";"COMPETENZA";"Mandato";"30/06/2023";"300";"Pagamento fattura n.AP10911065 del 28/06/2023  - Rif. Reversale n. 496";"27 - Spese telefoniche, fax e collegamento Internet";"0 - Spese telefoniche, fax e collegamento Internet";"VODAFONE ITALIA S.p.A. ";"29,28";"5,28";"-";"0,00";"24,00";"BONIFICO BANCARIO";"Valido";"-";"2023";"278"
"2023";"COMPETENZA";"Mandato";"29/06/2023";"299";"IVA SPLIT PAYMENT SU FATT. 1857 - VECTA SRL - VINCOLATO A REVERSALE 493";"53 - Ritenute per conto terzi";"0 - Ritenute per conto terzi";"AGENZIA DELLE ENTRATE  ";"171,60";"-";"0,00";"0,00";"171,60";"MODELLO F 24";"Valido";"-";"2023";"277"
"2023";"COMPETENZA";"Mandato";"29/06/2023";"298";"IVA SPLIT PAYMENT SU FATT. 445 - TELEQUATTRO SRL A SOCIO UNICO - VINCOLATO A REVERSALE 489";"53 - Ritenute per conto terzi";"0 - Ritenute per conto terzi";"AGENZIA DELLE ENTRATE  ";"183,35";"-";"0,00";"0,00";"183,35";"MODELLO F 24";"Valido";"-";"2023";"276"
"2023";"COMPETENZA";"Mandato";"29/06/2023";"297";"IVA SPLIT PAYMENT SU FATT.  712300510778 - HERA COMM. SRL - VINCOLATO A REVERSALE 487";"53 - Ritenute per conto terzi";"0 - Ritenute per conto terzi";"AGENZIA DELLE ENTRATE  ";"2,65";"-";"0,00";"0,00";"2,65";"MODELLO F 24";"Valido";"-";"2023";"275"
"2023";"COMPETENZA";"Mandato";"29/06/2023";"296";"IVA SPLIT PAYMENT SU FATT. 712300510777 - HERA COMM. SRL - VINCOLATO A REVERSALE 486";"53 - Ritenute per conto terzi";"0 - Ritenute per conto terzi";"AGENZIA DELLE ENTRATE  ";"4,84";"-";"0,00";"0,00";"4,84";"MODELLO F 24";"Valido";"-";"2023";"274"
"2023";"COMPETENZA";"Mandato";"29/06/2023";"295";"RITENUTA D'ACCONTO SU FATT. 10FE - CANZIO ROBERTO - VINCOLATO A REVERSALE 481";"46 - Ritenute erariali per lavoro autonomo";"0 - Ritenute erariali per lavoro autonomo";"AGENZIA DELLE ENTRATE  ";"600,00";"-";"0,00";"0,00";"600,00";"MODELLO F 24";"Valido";"-";"2023";"273"
"2023";"COMPETENZA";"Mandato";"29/06/2023";"294";"Pagamento fattura n.1857 del 27/06/2023  - Rif. Reversale n. 493";"24 - Menutenzioni e riparazioni ordinarie: macchine, mobili e pulizie sede";"0 - Menutenzioni e riparazioni ordinarie: macchine, mobili e pulizie sede";"VECTA S.R.L. ";"951,60";"171,60";"-";"0,00";"780,00";"BONIFICO BANCARIO";"Valido";"-";"2023";"272"
"2023";"COMPETENZA";"Mandato";"28/06/2023";"293";"Pagamento fattura n.445 del 27/06/2023  - Rif. Reversale n. 489";"20 - Spese di rappresentanza";"0 - Spese di rappresentanza";"TELEQUATTRO SRL A SOCIO UNICO ";"1.016,75";"183,35";"-";"0,00";"833,40";"BONIFICO BANCARIO";"Valido";"-";"2023";"271"
"2023";"COMPETENZA";"Mandato";"27/06/2023";"292";"Pagamento fattura n.712300510778 del 31/05/2023  - Rif. Reversale n. 487";"31 - Energia elettrica, acqua e gas";"0 - Energia elettrica, acqua e gas";"HERA COMM. SRL  ";"2,65";"2,65";"-";"0,00";"0,00";"CASSA";"Valido";"-";"2023";"270"
"2023";"COMPETENZA";"Mandato";"27/06/2023";"291";"Pagamento fattura n.712300510778 del 31/05/2023 ";"31 - Energia elettrica, acqua e gas";"0 - Energia elettrica, acqua e gas";"HERA COMM. SRL  ";"26,48";"0,00";"-";"0,00";"26,48";"REGOLARIZZAZIONE";"Valido";"-";"2023";"270"
"2023";"COMPETENZA";"Mandato";"27/06/2023";"290";"Pagamento fattura n.712300510777 del 31/05/2023  - Rif. Reversale n. 486";"31 - Energia elettrica, acqua e gas";"0 - Energia elettrica, acqua e gas";"HERA COMM. SRL  ";"4,84";"4,84";"-";"0,00";"0,00";"CASSA";"Valido";"-";"2023";"269"
"2023";"COMPETENZA";"Mandato";"27/06/2023";"289";"Pagamento fattura n.712300510777 del 31/05/2023 ";"31 - Energia elettrica, acqua e gas";"0 - Energia elettrica, acqua e gas";"HERA COMM. SRL  ";"48,43";"0,00";"-";"0,00";"48,43";"REGOLARIZZAZIONE";"Valido";"-";"2023";"269"
"2023";"COMPETENZA";"Mandato";"21/06/2023";"288";"Pagamento fattura n.10FE del 21/06/2023  - Rif. Reversale n. 481";"5 - Indennit� di carica e gettoni di presenza organi istituzionali";"0 - Indennit� di carica e gettoni di presenza organi istituzionali";"CANZIO  ROBERTO";"3.660,00";"0,00";"-";"600,00";"3.060,00";"BONIFICO BANCARIO";"Valido";"-";"2023";"268"
"2023";"COMPETENZA";"Mandato";"21/06/2023";"287";"IRAP GIUGNO";"13 - Contributi previdenziali e assistenziali";"0 - Contributi previdenziali e assistenziali";"AGENZIA DELLE ENTRATE  ";"1.208,45";"-";"0,00";"0,00";"1.208,45";"MODELLO F 24";"Valido";"-";"2023";"267"
"2023";"COMPETENZA";"Mandato";"21/06/2023";"286";"INPDAP GIUGNO";"13 - Contributi previdenziali e assistenziali";"0 - Contributi previdenziali e assistenziali";"AGENZIA DELLE ENTRATE  ";"14,22";"-";"0,00";"0,00";"14,22";"MODELLO F 24";"Valido";"-";"2023";"266"
"2023";"COMPETENZA";"Mandato";"21/06/2023";"285";"INPS ENTE GIUGNO";"13 - Contributi previdenziali e assistenziali";"0 - Contributi previdenziali e assistenziali";"AGENZIA DELLE ENTRATE  ";"3.385,07";"-";"0,00";"0,00";"3.385,07";"MODELLO F 24";"Valido";"-";"2023";"265"
"2023";"COMPETENZA";"Mandato";"21/06/2023";"284";"INPS DIPENDENTI GIUGNO - VINCOLATO A REVERSALI 473 E 475";"51 - Ritenute previdenziali e assistenziali lavoro dipendente";"0 - Ritenute previdenziali e assistenziali lavoro dipendente";"AGENZIA DELLE ENTRATE  ";"1.364,57";"-";"0,00";"0,00";"1.364,57";"MODELLO F 24";"Valido";"-";"2023";"264"
"2023";"COMPETENZA";"Mandato";"21/06/2023";"283";"IRPEF DIPENDENTI GIUGNO 2023 - VINCOLATO A REVERSALI 474 E 476";"47 - Ritenute erariali per lavoro dipendente";"0 - Ritenute erariali per lavoro dipendente";"AGENZIA DELLE ENTRATE  ";"4.423,99";"-";"0,00";"0,00";"4.423,99";"MODELLO F 24";"Valido";"-";"2023";"263"
"2023";"COMPETENZA";"Mandato";"21/06/2023";"282";"SPESE CONDOMINIALI 2023";"23 - Spese condominiali";"0 - Spese condominiali";"SAI AMMINISTRAZIONI IMMOBILIARI ";"1.827,90";"-";"0,00";"0,00";"1.827,90";"MAV";"Valido";"-";"2023";"262"
"2023";"COMPETENZA";"Mandato";"20/06/2023";"281";"GIUGNO";"10 - Indennit� mensa";"0 - Indennit� mensa";"SANTIN COSTANZA";"37,03";"-";"0,00";"0,00";"37,03";"BONIFICO BANCARIO";"Valido";"VALUTA FISSA AL 27/06/2023 - SENZA SPESE A CARICO DEL BENEFICIARIO";"2023";"261"
"2023";"COMPETENZA";"Mandato";"20/06/2023";"280";"GIUGNO";"10 - Indennit� mensa";"0 - Indennit� mensa";"OZBOLT STEFANO";"42,32";"-";"0,00";"0,00";"42,32";"BONIFICO BANCARIO";"Valido";"VALUTA FISSA AL 27/06/2023 - SENZA SPESE A CARICO DEL BENEFICIARIO";"2023";"260"
"2023";"COMPETENZA";"Mandato";"20/06/2023";"279";"ACCONTO";"8 - Retribuzione risultato dirigente";"0 - Retribuzione risultato dirigente";"SANTIN COSTANZA";"5.000,00";"-";"0,00";"0,00";"5.000,00";"BONIFICO BANCARIO";"Valido";"VALUTA FISSA AL 27/06/2023 - SENZA SPESE A CARICO DEL BENEFICIARIO";"2023";"259"
"2023";"COMPETENZA";"Mandato";"20/06/2023";"278";"ACCONTO, INDENNITA'";"9 - Indennit�, trattamento accessorio e lavoro straordinario";"0 - Indennit�, trattamento accessorio e lavoro straordinario";"OZBOLT STEFANO";"2.599,39";"-";"0,00";"0,00";"2.599,39";"BONIFICO BANCARIO";"Valido";"VALUTA FISSA AL 27/06/2023 - SENZA SPESE A CARICO DEL BENEFICIARIO";"2023";"258"
"2023";"COMPETENZA";"Mandato";"20/06/2023";"277";"STIPENDIO GIUGNO";"6 - Trattamento economico fondamentale";"0 - Trattamento economico fondamentale";"SANTIN COSTANZA";"4.448,67";"-";"921,15";"3.205,55";"321,97";"BONIFICO BANCARIO";"Valido";"VALUTA FISSA AL 27/06/2023 - SENZA SPESE A CARICO DEL BENEFICIARIO";"2023";"257"
"2023";"COMPETENZA";"Mandato";"20/06/2023";"276";"STIPENDIO GIUGNO";"6 - Trattamento economico fondamentale";"0 - Trattamento economico fondamentale";"OZBOLT STEFANO";"2.170,15";"-";"443,42";"1.218,44";"508,29";"BONIFICO BANCARIO";"Valido";"VALUTA FISSA AL 27/06/2023 - SENZA SPESE A CARICO DEL BENEFICIARIO";"2023";"256"
"2023";"COMPETENZA";"Mandato";"20/06/2023";"275";"REINTEGRO SERVIZIO ECONOMATO";"55 - Servizio economato";"0 - Servizio economato";"OZBOLT STEFANO";"600,00";"-";"0,00";"0,00";"600,00";"CONTANTI";"Valido";"QUIETANZIANTE DIPENENTE DELL'ORDINE OZBOLT STEFANO C.F.: ZBLSFN67P06L424N";"2023";"255"
"2023";"COMPETENZA";"Mandato";"20/06/2023";"274";"REINTEGRO SERVIZIO ECONOMATO";"55 - Servizio economato";"0 - Servizio economato";"OZBOLT STEFANO";"900,00";"-";"0,00";"0,00";"900,00";"CONTANTI";"Valido";"QUIETANZIANTE DIPENENTE DELL'ORDINE OZBOLT STEFANO C.F.: ZBLSFN67P06L424N";"2023";"254"
"2023";"COMPETENZA";"Mandato";"20/06/2023";"273";"SERVIZIO ECONOMATO";"37 - Imposte, tasse, tributi e bolli";"0 - Imposte, tasse, tributi e bolli";"UTENTI DI SEGRETERIA  ";"6,55";"-";"0,00";"0,00";"6,55";"REVERSALE VINCOLATA A MANDATI";"Valido";"-";"2023";"253"
"2023";"COMPETENZA";"Mandato";"20/06/2023";"272";"SERVIZIO ECONOMATO";"30 - Spese di locomozione";"0 - Spese di locomozione";"UTENTI DI SEGRETERIA  ";"13,00";"-";"0,00";"0,00";"13,00";"REVERSALE VINCOLATA A MANDATI";"Valido";"-";"2023";"252"
"2023";"COMPETENZA";"Mandato";"20/06/2023";"271";"SERVIZIO ECONOMATO";"20 - Spese di rappresentanza";"0 - Spese di rappresentanza";"UTENTI DI SEGRETERIA  ";"685,84";"-";"0,00";"0,00";"685,84";"REVERSALE VINCOLATA A MANDATI";"Valido";"-";"2023";"251"
"2023";"COMPETENZA";"Mandato";"20/06/2023";"270";"SERVIZIO ECONOMATO";"4 - Rimborso spese viaggio, soggiorno, indennit� di trasferta organi istituzionali";"0 - Rimborso spese viaggio, soggiorno, indennit� di trasferta organi istituzionali";"UTENTI DI SEGRETERIA  ";"66,20";"-";"0,00";"0,00";"66,20";"REVERSALE VINCOLATA A MANDATI";"Valido";"-";"2023";"250"
"2023";"COMPETENZA";"Mandato";"20/06/2023";"269";"RITENUTA D'ACCONTO SU FATT. 1 - BALESTRA MARIO - VINCOLATO A REVERSALE 469";"46 - Ritenute erariali per lavoro autonomo";"0 - Ritenute erariali per lavoro autonomo";"AGENZIA DELLE ENTRATE  ";"600,00";"-";"0,00";"0,00";"600,00";"MODELLO F 24";"Valido";"-";"2023";"249"
"2023";"COMPETENZA";"Mandato";"20/06/2023";"268";"RITENUTA D'ACCONTO SU FATT. 9/PA - QUARANTA COSIMO - VNCOLATO A REVERSALE 468";"46 - Ritenute erariali per lavoro autonomo";"0 - Ritenute erariali per lavoro autonomo";"AGENZIA DELLE ENTRATE  ";"1.000,00";"-";"0,00";"0,00";"1.000,00";"MODELLO F 24";"Valido";"-";"2023";"248"
"2023";"COMPETENZA";"Mandato";"20/06/2023";"267";"RITENUTA D'ACCONTO SU INDENNITA' DI CARICA DOTT.SSA CLARICH - VNCOLATO A REVERSALE 467";"46 - Ritenute erariali per lavoro autonomo";"0 - Ritenute erariali per lavoro autonomo";"AGENZIA DELLE ENTRATE  ";"600,00";"-";"0,00";"0,00";"600,00";"MODELLO F 24";"Valido";"-";"2023";"247"
"2023";"COMPETENZA";"Mandato";"20/06/2023";"266";"IVA SPLIT PAYMENT SU FATT. 391/PA/2023 - LEGISLAZIONE TECNICA S.R.L. - VINCOLATO A REVERSALE 472";"53 - Ritenute per conto terzi";"0 - Ritenute per conto terzi";"AGENZIA DELLE ENTRATE  ";"286,00";"-";"0,00";"0,00";"286,00";"MODELLO F 24";"Valido";"-";"2023";"246"
"2023";"COMPETENZA";"Mandato";"20/06/2023";"265";"IVA SPLIT PAYMENT SU FATT. 1 - MACELLERIA TAMBURINI S.A.S. DI STEFANO TAMBURINI & C. - VINCOLATO A REVERSALE 456";"53 - Ritenute per conto terzi";"0 - Ritenute per conto terzi";"AGENZIA DELLE ENTRATE  ";"18,18";"-";"0,00";"0,00";"18,18";"MODELLO F 24";"Valido";"-";"2023";"245"
"2023";"COMPETENZA";"Mandato";"20/06/2023";"264";"IVA SPLIT PAYMENT SU FATT. 412307485701 - HERA COMM. SRL - VINCOLATO A REVERSALE 455";"53 - Ritenute per conto terzi";"0 - Ritenute per conto terzi";"AGENZIA DELLE ENTRATE  ";"71,47";"-";"0,00";"0,00";"71,47";"MODELLO F 24";"Valido";"-";"2023";"244"
"2023";"COMPETENZA";"Mandato";"20/06/2023";"263";"Pagamento fattura n.391/PA/2023 del 12/06/2023  - Rif. Reversale n. 472";"11 - Aggiornamento e formazione";"0 - Aggiornamento e formazione";"LEGISLAZIONE TECNICA S.r.l. ";"1.586,00";"286,00";"-";"0,00";"1.300,00";"BONIFICO BANCARIO";"Valido";"-";"2023";"243"
"2023";"COMPETENZA";"Mandato";"19/06/2023";"262";"Pagamento fattura n.1 del 13/06/2023  - Rif. Reversale n. 469";"5 - Indennit� di carica e gettoni di presenza organi istituzionali";"0 - Indennit� di carica e gettoni di presenza organi istituzionali";"BALESTRA  MARIO";"3.660,00";"0,00";"-";"600,00";"3.060,00";"BONIFICO BANCARIO";"Valido";"-";"2023";"242"
"2023";"COMPETENZA";"Mandato";"19/06/2023";"261";"Pagamento fattura n.9/PA del 14/06/2023  - Rif. Reversale n. 468";"5 - Indennit� di carica e gettoni di presenza organi istituzionali";"0 - Indennit� di carica e gettoni di presenza organi istituzionali";"QUARANTA  COSIMO";"6.100,00";"0,00";"-";"1.000,00";"5.100,00";"BONIFICO BANCARIO";"Valido";"-";"2023";"241"
"2023";"COMPETENZA";"Mandato";"19/06/2023";"260";"INDENNITA' DI CARICA PRIMO SEMESTRE";"5 - Indennit� di carica e gettoni di presenza organi istituzionali";"0 - Indennit� di carica e gettoni di presenza organi istituzionali";"CLARICH  GABRIELLA";"3.000,00";"-";"0,00";"600,00";"2.400,00";"BONIFICO BANCARIO";"Valido";"-";"2023";"240"
"2023";"COMPETENZA";"Mandato";"19/06/2023";"259";"RIMBORSO SPESE TRASFERTA A UDINE 16 E 17 GIUGNO 2023";"4 - Rimborso spese viaggio, soggiorno, indennit� di trasferta organi istituzionali";"0 - Rimborso spese viaggio, soggiorno, indennit� di trasferta organi istituzionali";"QUARANTA  COSIMO";"199,96";"-";"0,00";"0,00";"199,96";"BONIFICO BANCARIO";"Valido";"-";"2023";"239"
"2023";"COMPETENZA";"Mandato";"12/06/2023";"258";"Pagamento fattura n.1 del 09/06/2023 CENA  8 GIUGNO 2023 - Rif. Reversale n. 456";"20 - Spese di rappresentanza";"0 - Spese di rappresentanza";"MACELLERIA TAMBURINI S.A.S. DI STEFANO TAMBURINI & C. ";"200,00";"18,18";"-";"0,00";"181,82";"BONIFICO BANCARIO";"Valido";"-";"2023";"238"
"2023";"COMPETENZA";"Mandato";"09/06/2023";"257";"3A RATA AUTORIZZAZIONE AL PAGAMENTO IN MODO VIRTUALE DELL'IMPOSTA DI BOLLO";"37 - Imposte, tasse, tributi e bolli";"0 - Imposte, tasse, tributi e bolli";"AGENZIA DELLE ENTRATE  ";"531,20";"-";"0,00";"0,00";"531,20";"MODELLO F 24";"Valido";"-";"2023";"236"
"2023";"COMPETENZA";"Mandato";"09/06/2023";"256";"Pagamento fattura n.412307485701 del 06/06/2023  - Rif. Reversale n. 455";"31 - Energia elettrica, acqua e gas";"0 - Energia elettrica, acqua e gas";"HERA COMM. SRL  ";"396,35";"71,47";"-";"0,00";"324,88";"BONIFICO BANCARIO";"Valido";"-";"2023";"235"
"2023";"COMPETENZA";"Mandato";"08/06/2023";"255";"ILIA 2023";"37 - Imposte, tasse, tributi e bolli";"0 - Imposte, tasse, tributi e bolli";"ESATTO SPA  ";"2.474,00";"-";"0,00";"0,00";"2.474,00";"MODELLO F 24";"Valido";"-";"2023";"234"
"2023";"COMPETENZA";"Mandato";"07/06/2023";"254";"Pagamento fattura n.5677 del 31/05/2023  - Rif. Reversale n. 450";"26 - Spese postali";"0 - Spese postali";"EUREKA SOC. COOPERATIVA  ";"18,89";"3,41";"-";"0,00";"15,48";"BONIFICO BANCARIO";"Valido";"-";"2023";"233"
"2023";"COMPETENZA";"Mandato";"07/06/2023";"253";"POLIZZA 026001044";"43 - Accantonamento indennit� anzianit� e similari";"0 - Accantonamento indennit� anzianit� e similari";"GENERALI ITALIA S.P.A. - AGENZIA TRIESTE UNITA' D'ITALIA 686 ";"2.387,17";"-";"0,00";"0,00";"2.387,17";"BONIFICO BANCARIO";"Valido";"-";"2023";"232"
"2023";"COMPETENZA";"Mandato";"07/06/2023";"252";"INTEGRAZIONE PAGAMENTO QUALE MEMBRO COMMISSIONE AVVISO DI MOBILITA' ORDINE DI TRIESTE";"41 - Fondi di riserva per spese impreviste o strordinarie (art. 34 DPR 221/50)";"0 - Fondi di riserva per spese impreviste o strordinarie (art. 34 DPR 221/50)";"NATOLI GIOVANNI";"60,00";"-";"0,00";"0,00";"60,00";"BONIFICO BANCARIO";"Valido";"-";"2023";"231"
"2023";"COMPETENZA";"Mandato";"07/06/2023";"251";"IRAP STIPENDI MAGGIO";"13 - Contributi previdenziali e assistenziali";"0 - Contributi previdenziali e assistenziali";"AGENZIA DELLE ENTRATE  ";"831,73";"-";"0,00";"0,00";"831,73";"MODELLO F 24";"Valido";"-";"2023";"230"
"2023";"COMPETENZA";"Mandato";"07/06/2023";"250";"INPDAP STIPENDI MAGGIO";"13 - Contributi previdenziali e assistenziali";"0 - Contributi previdenziali e assistenziali";"AGENZIA DELLE ENTRATE  ";"9,79";"-";"0,00";"0,00";"9,79";"MODELLO F 24";"Valido";"-";"2023";"229"
"2023";"COMPETENZA";"Mandato";"07/06/2023";"249";"INPS ENTE MAGGIO";"13 - Contributi previdenziali e assistenziali";"0 - Contributi previdenziali e assistenziali";"AGENZIA DELLE ENTRATE  ";"2.329,81";"-";"0,00";"0,00";"2.329,81";"MODELLO F 24";"Valido";"-";"2023";"228"
"2023";"COMPETENZA";"Mandato";"07/06/2023";"248";"INPS TFS DEMARCHI - VINCOLATO REVERSALE 412";"51 - Ritenute previdenziali e assistenziali lavoro dipendente";"0 - Ritenute previdenziali e assistenziali lavoro dipendente";"AGENZIA DELLE ENTRATE  ";"23,66";"-";"0,00";"0,00";"23,66";"MODELLO F 24";"Valido";"-";"2023";"227"
"2023";"COMPETENZA";"Mandato";"07/06/2023";"247";"INPS STIPENDI MAGGIO - VINCOLATO A REVERSALI 404 E 406";"51 - Ritenute previdenziali e assistenziali lavoro dipendente";"0 - Ritenute previdenziali e assistenziali lavoro dipendente";"AGENZIA DELLE ENTRATE  ";"879,94";"-";"0,00";"0,00";"879,94";"MODELLO F 24";"Valido";"-";"2023";"226"
"2023";"COMPETENZA";"Mandato";"07/06/2023";"246";"CONGUAGLIO IRPEF TFS DEMARCHI";"37 - Imposte, tasse, tributi e bolli";"0 - Imposte, tasse, tributi e bolli";"AGENZIA DELLE ENTRATE  ";"84,71";"-";"0,00";"0,00";"84,71";"MODELLO F 24";"Valido";"-";"2023";"225"
"2023";"COMPETENZA";"Mandato";"07/06/2023";"245";"IRPEF TFS DEMARCHI - VINCOLATO A REVERSALE 413";"47 - Ritenute erariali per lavoro dipendente";"0 - Ritenute erariali per lavoro dipendente";"AGENZIA DELLE ENTRATE  ";"11.480,85";"-";"0,00";"0,00";"11.480,85";"MODELLO F 24";"Valido";"-";"2023";"224"
"2023";"COMPETENZA";"Mandato";"07/06/2023";"244";"IRPEF STIPENDI MAGGIO - VNCOLATO A REVERSALI 405 E 407";"47 - Ritenute erariali per lavoro dipendente";"0 - Ritenute erariali per lavoro dipendente";"AGENZIA DELLE ENTRATE  ";"2.625,23";"-";"0,00";"0,00";"2.625,23";"MODELLO F 24";"Valido";"-";"2023";"223"
"2023";"COMPETENZA";"Mandato";"06/06/2023";"243";"RIMBORSO CANONE ISCRIZIONE ORDINE 2023 (DOPPIO PAGAMENTO)";"38 - Rimborso quote di iscrizione e tasse non dovute";"0 - Rimborso quote di iscrizione e tasse non dovute";"ZECCHIN  MASSIMO";"185,00";"-";"0,00";"0,00";"185,00";"BONIFICO BANCARIO";"Valido";"-";"2023";"222"
"2023";"COMPETENZA";"Mandato";"01/06/2023";"242";"RITENUTA D'ACCONTO SU COMPENSI COMMISSIONE MOBILITA' ORDINE DEI MEDICI (CETTUL E NATOLI) - VINCOLATA  A REVERSALI 432 E 433";"46 - Ritenute erariali per lavoro autonomo";"0 - Ritenute erariali per lavoro autonomo";"AGENZIA DELLE ENTRATE  ";"120,00";"-";"0,00";"0,00";"120,00";"MODELLO F 24";"Valido";"-";"2023";"221"
"2023";"COMPETENZA";"Mandato";"01/06/2023";"241";"IVA SPLIT PAYMENT SU FATT. 832302154041 - HERA COMM. SRL - VINCOLATO A REVERSALE 441";"53 - Ritenute per conto terzi";"0 - Ritenute per conto terzi";"AGENZIA DELLE ENTRATE  ";"19,80";"-";"0,00";"0,00";"19,80";"MODELLO F 24";"Valido";"-";"2023";"220"
"2023";"COMPETENZA";"Mandato";"01/06/2023";"240";"IVA SPLIT PAYMENT SU FATT. 05/PA - I.P.S.U. DI ZONTA CALLIGARIS ANNAMARIA & C. SAS - VINCOLATO A REVERSALE 440";"53 - Ritenute per conto terzi";"0 - Ritenute per conto terzi";"AGENZIA DELLE ENTRATE  ";"95,70";"-";"0,00";"0,00";"95,70";"MODELLO F 24";"Valido";"-";"2023";"219"
"2023";"COMPETENZA";"Mandato";"01/06/2023";"239";"IVA SPLIT PAYMENT SU FATT. 410/E - TELEQUATTRO SRL A SOCIO UNICO - VINCOLATO A REVERSALE 439";"53 - Ritenute per conto terzi";"0 - Ritenute per conto terzi";"AGENZIA DELLE ENTRATE  ";"550,04";"-";"0,00";"0,00";"550,04";"MODELLO F 24";"Valido";"-";"2023";"218"
"2023";"COMPETENZA";"Mandato";"01/06/2023";"238";"IVA SPLIT PAYMENT SU FATT. 000014PA - GRAMAGLIA & c. SRL - VINCOLATO A REVERSALE 431";"53 - Ritenute per conto terzi";"0 - Ritenute per conto terzi";"AGENZIA DELLE ENTRATE  ";"84,26";"-";"0,00";"0,00";"84,26";"MODELLO F 24";"Valido";"-";"2023";"217"
"2023";"COMPETENZA";"Mandato";"01/06/2023";"237";"Pagamento fattura n.832302154041 del 13/04/2023  - Rif. Reversale n. 441";"31 - Energia elettrica, acqua e gas";"0 - Energia elettrica, acqua e gas";"HERA COMM. SRL  ";"19,80";"19,80";"-";"0,00";"0,00";"CASSA";"Valido";"-";"2023";"216"
"2023";"COMPETENZA";"Mandato";"01/06/2023";"236";"Pagamento fattura n.832302154041 del 13/04/2023 ";"31 - Energia elettrica, acqua e gas";"0 - Energia elettrica, acqua e gas";"HERA COMM. SRL  ";"90,01";"0,00";"-";"0,00";"90,01";"REGOLARIZZAZIONE";"Valido";"-";"2023";"216"
"2023";"COMPETENZA";"Mandato";"01/06/2023";"235";"Pagamento fattura n.05/PA del 31/05/2023  - Rif. Reversale n. 440";"24 - Menutenzioni e riparazioni ordinarie: macchine, mobili e pulizie sede";"0 - Menutenzioni e riparazioni ordinarie: macchine, mobili e pulizie sede";"I.P.S.U. DI ZONTA CALLIGARIS ANNAMARIA & C SAS  ";"530,70";"95,70";"-";"0,00";"435,00";"BONIFICO BANCARIO";"Valido";"-";"2023";"215"
"2023";"COMPETENZA";"Mandato";"01/06/2023";"234";"Pagamento fattura n.410/E del 31/05/2023  - Rif. Reversale n. 439";"20 - Spese di rappresentanza";"0 - Spese di rappresentanza";"TELEQUATTRO SRL A SOCIO UNICO ";"3.050,24";"550,04";"-";"0,00";"2.500,20";"BONIFICO BANCARIO";"Valido";"-";"2023";"214"
"2023";"COMPETENZA";"Mandato";"01/06/2023";"233";"COMPENSO COMPONENTE COMMISSIONE MOBILITA' VOLONTARIA ORDINE TRIESTE";"41 - Fondi di riserva per spese impreviste o strordinarie (art. 34 DPR 221/50)";"0 - Fondi di riserva per spese impreviste o strordinarie (art. 34 DPR 221/50)";"NATOLI GIOVANNI";"323,70";"-";"0,00";"60,00";"263,70";"BONIFICO BANCARIO";"Valido";"-";"2023";"213"
"2023";"COMPETENZA";"Mandato";"01/06/2023";"232";"COMPENSO COMPONENTE COMMISSIONE MOBILITA' VOLONTARIA ORDINE TRIESTE";"41 - Fondi di riserva per spese impreviste o strordinarie (art. 34 DPR 221/50)";"0 - Fondi di riserva per spese impreviste o strordinarie (art. 34 DPR 221/50)";"CETTUL ERICA";"300,00";"-";"0,00";"60,00";"240,00";"BONIFICO BANCARIO";"Valido";"-";"2023";"212"
"2023";"COMPETENZA";"Mandato";"31/05/2023";"231";"Pagamento fattura n.000014PA del 24/05/2023  - Rif. Reversale n. 431";"24 - Menutenzioni e riparazioni ordinarie: macchine, mobili e pulizie sede";"0 - Menutenzioni e riparazioni ordinarie: macchine, mobili e pulizie sede";"GRAMAGLIA & C. SRL  ";"467,26";"84,26";"-";"0,00";"383,00";"BONIFICO BANCARIO";"Valido";"-";"2023";"211"
"2023";"COMPETENZA";"Mandato";"30/05/2023";"230";"RITENUTA D'ACCONTO SU FATT. 7/PA/E - PASCHINA - VINCOLATO A REVERSALE 427";"46 - Ritenute erariali per lavoro autonomo";"0 - Ritenute erariali per lavoro autonomo";"AGENZIA DELLE ENTRATE  ";"600,00";"-";"0,00";"0,00";"600,00";"MODELLO F 24";"Valido";"-";"2023";"210"
"2023";"COMPETENZA";"Mandato";"30/05/2023";"229";"IVA SPLIT PAYMENT SU FATT. 412306739379 - HERA COMM. SRL - VINCOLATO A REVERSALE 403";"53 - Ritenute per conto terzi";"0 - Ritenute per conto terzi";"AGENZIA DELLE ENTRATE  ";"5,37";"-";"0,00";"0,00";"5,37";"MODELLO F 24";"Valido";"-";"2023";"209"
"2023";"COMPETENZA";"Mandato";"30/05/2023";"228";"IVA SPLIT PAYMENT SU FATT. 000012PA - GRAMAGLIA & C. SRL - VINCOLATO A REVERSALE 391";"53 - Ritenute per conto terzi";"0 - Ritenute per conto terzi";"AGENZIA DELLE ENTRATE  ";"151,80";"-";"0,00";"0,00";"151,80";"MODELLO F 24";"Valido";"-";"2023";"208"
"2023";"COMPETENZA";"Mandato";"30/05/2023";"227";"Pagamento fattura n.7/PA/E del 29/05/2023  - Rif. Reversale n. 427";"5 - Indennit� di carica e gettoni di presenza organi istituzionali";"0 - Indennit� di carica e gettoni di presenza organi istituzionali";"PASCHINA  DIEGO";"3.660,00";"0,00";"-";"600,00";"3.060,00";"BONIFICO BANCARIO";"Valido";"-";"2023";"207"
"2023";"COMPETENZA";"Mandato";"23/05/2023";"226";"EROGAZIONE TFS";"54 - Indennit� di anzianit� accantonata";"0 - Indennit� di anzianit� accantonata";"DEMARCHI DENISE";"47.265,73";"-";"23,66";"11.565,56";"35.676,51";"BONIFICO BANCARIO";"Valido";"-";"2023";"206"
"2023";"COMPETENZA";"Mandato";"23/05/2023";"225";"MAGGIO";"10 - Indennit� mensa";"0 - Indennit� mensa";"SANTIN COSTANZA";"26,45";"-";"0,00";"0,00";"26,45";"BONIFICO BANCARIO";"Valido";"VALUTA FISSA AL 26/05/2023 - SENZA SPESE A CARICO DEL BENEFICIARIO";"2023";"205"
"2023";"COMPETENZA";"Mandato";"23/05/2023";"224";"MAGGIO";"10 - Indennit� mensa";"0 - Indennit� mensa";"OZBOLT STEFANO";"37,03";"-";"0,00";"0,00";"37,03";"BONIFICO BANCARIO";"Valido";"VALUTA FISSA AL 26/05/2023 - SENZA SPESE A CARICO DEL BENEFICIARIO";"2023";"204"
"2023";"COMPETENZA";"Mandato";"23/05/2023";"223";"INDENNITA' E STRAORDINARI MAGGIO";"9 - Indennit�, trattamento accessorio e lavoro straordinario";"0 - Indennit�, trattamento accessorio e lavoro straordinario";"OZBOLT STEFANO";"234,89";"-";"0,00";"0,00";"234,89";"BONIFICO BANCARIO";"Valido";"VALUTA FISSA AL 26/05/2023 - SENZA SPESE A CARICO DEL BENEFICIARIO";"2023";"203"
"2023";"COMPETENZA";"Mandato";"23/05/2023";"222";"STIPENDIO MAGGIO";"6 - Trattamento economico fondamentale";"0 - Trattamento economico fondamentale";"SANTIN COSTANZA";"5.732,82";"-";"541,75";"1.770,52";"3.420,55";"BONIFICO BANCARIO";"Valido";"VALUTA FISSA AL 26/05/2023 - SENZA SPESE A CARICO DEL BENEFICIARIO";"2023";"202"
"2023";"COMPETENZA";"Mandato";"23/05/2023";"221";"STIPENDIO MAGGIO";"6 - Trattamento economico fondamentale";"0 - Trattamento economico fondamentale";"OZBOLT STEFANO";"3.436,98";"-";"338,19";"854,71";"2.244,08";"BONIFICO BANCARIO";"Valido";"VALUTA FISSA AL 26/05/2023 - SENZA SPESE A CARICO DEL BENEFICIARIO";"2023";"201"
"2023";"COMPETENZA";"Mandato";"22/05/2023";"220";"Pagamento fattura n.412306739379 del 15/05/2023  - Rif. Reversale n. 403";"31 - Energia elettrica, acqua e gas";"0 - Energia elettrica, acqua e gas";"HERA COMM. SRL  ";"112,84";"5,37";"-";"0,00";"107,47";"BONIFICO BANCARIO";"Valido";"-";"2023";"200"
"2023";"COMPETENZA";"Mandato";"17/05/2023";"219";"Pagamento fattura n.000012PA del 06/05/2023  - Rif. Reversale n. 391";"42 - Acquisto macchine, attrezzature per gli uffici e procedure informatiche";"0 - Acquisto macchine, attrezzature per gli uffici e procedure informatiche";"GRAMAGLIA & C. SRL  ";"841,80";"151,80";"-";"0,00";"690,00";"BONIFICO BANCARIO";"Valido";"-";"2023";"199"
"2023";"COMPETENZA";"Mandato";"15/05/2023";"218";"IVA SPLIT PAYMENT SU FATT. 8D00075100 - TELECOM ITALIA S.P.A. - VINCOLATO A REVERSALE 386";"53 - Ritenute per conto terzi";"0 - Ritenute per conto terzi";"AGENZIA DELLE ENTRATE  ";"35,57";"-";"0,00";"0,00";"35,57";"MODELLO F 24";"Valido";"-";"2023";"198"
"2023";"COMPETENZA";"Mandato";"15/05/2023";"217";"IVA SPLIT PAYMENT SU FATT. 8D00075250 - VINCOLATO A REVERSALE 385";"53 - Ritenute per conto terzi";"0 - Ritenute per conto terzi";"AGENZIA DELLE ENTRATE  ";"33,27";"-";"0,00";"0,00";"33,27";"MODELLO F 24";"Valido";"-";"2023";"197"
"2023";"COMPETENZA";"Mandato";"15/05/2023";"216";"IVA SPLIT PAYMENT SU FATT. 8D00074990 - TELECOM ITALIA S.P.A. - VINCOLATO A REVERSALE 384";"53 - Ritenute per conto terzi";"0 - Ritenute per conto terzi";"AGENZIA DELLE ENTRATE  ";"30,80";"-";"0,00";"0,00";"30,80";"MODELLO F 24";"Valido";"-";"2023";"196"
"2023";"COMPETENZA";"Mandato";"15/05/2023";"215";"IVA SPLIT PAYMENT SU FATT. 58 - STUDIO A.R. - VINCOLATO A REVERSALE 372";"53 - Ritenute per conto terzi";"0 - Ritenute per conto terzi";"AGENZIA DELLE ENTRATE  ";"55,00";"-";"0,00";"0,00";"55,00";"MODELLO F 24";"Valido";"-";"2023";"195"
"2023";"COMPETENZA";"Mandato";"15/05/2023";"214";"RITENUTA D'ACCONTO SU FATT. 54 - FURLANI RENATO - VINCOLATO A REVERSALE 362";"46 - Ritenute erariali per lavoro autonomo";"0 - Ritenute erariali per lavoro autonomo";"AGENZIA DELLE ENTRATE  ";"500,00";"-";"0,00";"0,00";"500,00";"MODELLO F 24";"Valido";"-";"2023";"194"
"2023";"COMPETENZA";"Mandato";"15/05/2023";"213";"IVA SPLIT PAYMENT SU FATT. 0000653353AMC12023 - MANZONI S.P.A. - VINCOLATO A REVERSALE 361";"53 - Ritenute per conto terzi";"0 - Ritenute per conto terzi";"AGENZIA DELLE ENTRATE  ";"35,20";"-";"0,00";"0,00";"35,20";"MODELLO F 24";"Valido";"-";"2023";"193"
"2023";"COMPETENZA";"Mandato";"15/05/2023";"212";"Pagamento fattura n.8D00075100 del 12/04/2023  - Rif. Reversale n. 386";"27 - Spese telefoniche, fax e collegamento Internet";"0 - Spese telefoniche, fax e collegamento Internet";"TELECOM ITALIA S.P.A.  ";"35,57";"35,57";"-";"0,00";"0,00";"CASSA";"Valido";"-";"2023";"192"
"2023";"COMPETENZA";"Mandato";"15/05/2023";"211";"Pagamento fattura n.8D00075100 del 12/04/2023 ";"27 - Spese telefoniche, fax e collegamento Internet";"0 - Spese telefoniche, fax e collegamento Internet";"TELECOM ITALIA S.P.A.  ";"161,65";"0,00";"-";"0,00";"161,65";"REGOLARIZZAZIONE";"Valido";"-";"2023";"192"
"2023";"COMPETENZA";"Mandato";"15/05/2023";"210";"Pagamento fattura n.8D00075250 del 12/04/2023  - Rif. Reversale n. 385";"27 - Spese telefoniche, fax e collegamento Internet";"0 - Spese telefoniche, fax e collegamento Internet";"TELECOM ITALIA S.P.A.  ";"33,27";"33,27";"-";"0,00";"0,00";"CASSA";"Valido";"-";"2023";"191"
"2023";"COMPETENZA";"Mandato";"15/05/2023";"209";"Pagamento fattura n.8D00075250 del 12/04/2023 ";"27 - Spese telefoniche, fax e collegamento Internet";"0 - Spese telefoniche, fax e collegamento Internet";"TELECOM ITALIA S.P.A.  ";"151,22";"0,00";"-";"0,00";"151,22";"REGOLARIZZAZIONE";"Valido";"-";"2023";"191"
"2023";"COMPETENZA";"Mandato";"15/05/2023";"208";"Pagamento fattura n.8D00074990 del 12/04/2023  - Rif. Reversale n. 384";"27 - Spese telefoniche, fax e collegamento Internet";"0 - Spese telefoniche, fax e collegamento Internet";"TELECOM ITALIA S.P.A.  ";"30,80";"30,80";"-";"0,00";"0,00";"CASSA";"Valido";"-";"2023";"190"
"2023";"COMPETENZA";"Mandato";"15/05/2023";"207";"Pagamento fattura n.8D00074990 del 12/04/2023 ";"27 - Spese telefoniche, fax e collegamento Internet";"0 - Spese telefoniche, fax e collegamento Internet";"TELECOM ITALIA S.P.A.  ";"140,00";"0,00";"-";"0,00";"140,00";"REGOLARIZZAZIONE";"Valido";"-";"2023";"190"
"2023";"COMPETENZA";"Mandato";"10/05/2023";"206";"Pagamento fattura n.58 del 06/05/2023  - Rif. Reversale n. 372";"25 - Spese manutenzione sede";"0 - Spese manutenzione sede";"STUDIO A.R.  ";"305,00";"55,00";"-";"0,00";"250,00";"BONIFICO BANCARIO";"Valido";"-";"2023";"189"
"2023";"COMPETENZA";"Mandato";"08/05/2023";"205";"QUOTE FNOMCEO - PRIMA RATA";"44 - Quota FNOMCeO per tassa annuale a ruolo";"0 - Quota FNOMCeO per tassa annuale a ruolo";"FNOMCEO  ";"22.632,00";"-";"0,00";"0,00";"22.632,00";"PAGOPA";"Valido";"-";"2023";"188"
"2023";"COMPETENZA";"Mandato";"04/05/2023";"204";"Pagamento fattura n.54 del 03/05/2023  - Rif. Reversale n. 362";"5 - Indennit� di carica e gettoni di presenza organi istituzionali";"0 - Indennit� di carica e gettoni di presenza organi istituzionali";"FURLANI RENATO ";"3.172,00";"0,00";"-";"500,00";"2.672,00";"BONIFICO BANCARIO";"Valido";"-";"2023";"187"
"2023";"COMPETENZA";"Mandato";"04/05/2023";"203";"Pagamento fattura n.0000653353AMC12023 del 30/04/2023  - Rif. Reversale n. 361";"20 - Spese di rappresentanza";"0 - Spese di rappresentanza";"MANZONI S.P.A.  ";"195,20";"35,20";"-";"0,00";"160,00";"BONIFICO BANCARIO";"Valido";"-";"2023";"186"
"2023";"COMPETENZA";"Mandato";"03/05/2023";"202";"IVA SPLIT PAYMENT SU FATT. 832301688024 - HERA COMM. SRL - VINCOLATO A REVERSALE 358";"53 - Ritenute per conto terzi";"0 - Ritenute per conto terzi";"AGENZIA DELLE ENTRATE  ";"122,01";"-";"0,00";"0,00";"122,01";"MODELLO F 24";"Valido";"-";"2023";"185"
"2023";"COMPETENZA";"Mandato";"03/05/2023";"201";"IVA SPLIT PAYMENT SU FATT. 04/PA - I.P.S.U. DI ZONTA CALLIGARIS ANNAMARIA & C. SAS - VINCOLATO A REVERSALE 354";"53 - Ritenute per conto terzi";"0 - Ritenute per conto terzi";"AGENZIA DELLE ENTRATE  ";"95,70";"-";"0,00";"0,00";"95,70";"MODELLO F 24";"Valido";"-";"2023";"184"
"2023";"COMPETENZA";"Mandato";"03/05/2023";"200";"IVA SPLIT PAYMENT SU FATT. 288/e - TELEQUATTRO SRL S SOCIO UNICO - VINCOLATO A REVERSALE 352";"53 - Ritenute per conto terzi";"0 - Ritenute per conto terzi";"AGENZIA DELLE ENTRATE  ";"183,35";"-";"0,00";"0,00";"183,35";"MODELLO F 24";"Valido";"-";"2023";"183"
"2023";"COMPETENZA";"Mandato";"03/05/2023";"199";"IVA SPLIT PAYMENT SU FATT. 712300303358 - HERA COMM. SRL - VINCOLATO A REVERSALE 349";"53 - Ritenute per conto terzi";"0 - Ritenute per conto terzi";"AGENZIA DELLE ENTRATE  ";"1,33";"-";"0,00";"0,00";"1,33";"MODELLO F 24";"Valido";"-";"2023";"182"
"2023";"COMPETENZA";"Mandato";"03/05/2023";"198";"IVA SPLIT PAYMENT SU FATT. 712300303357 - HERA COMM. SRL - VINCOLATO A REVERSALE 348";"53 - Ritenute per conto terzi";"0 - Ritenute per conto terzi";"AGENZIA DELLE ENTRATE  ";"3,99";"-";"0,00";"0,00";"3,99";"MODELLO F 24";"Valido";"-";"2023";"181"
"2023";"COMPETENZA";"Mandato";"03/05/2023";"197";"Pagamento fattura n.832301688024 del 28/03/2023  - Rif. Reversale n. 358";"31 - Energia elettrica, acqua e gas";"0 - Energia elettrica, acqua e gas";"HERA COMM. SRL  ";"122,01";"122,01";"-";"0,00";"0,00";"CASSA";"Valido";"-";"2023";"180"
"2023";"COMPETENZA";"Mandato";"03/05/2023";"196";"Pagamento fattura n.832301688024 del 28/03/2023 ";"31 - Energia elettrica, acqua e gas";"0 - Energia elettrica, acqua e gas";"HERA COMM. SRL  ";"554,61";"0,00";"-";"0,00";"554,61";"REGOLARIZZAZIONE";"Valido";"-";"2023";"180"
"2023";"COMPETENZA";"Mandato";"02/05/2023";"195";"2a RATA AUTORIZZAZIONE AL PAGAMENTO IN MODO VIRTUALE DELL'IMPOSTA DI BOLLO";"37 - Imposte, tasse, tributi e bolli";"0 - Imposte, tasse, tributi e bolli";"AGENZIA DELLE ENTRATE  ";"531,20";"-";"0,00";"0,00";"531,20";"MODELLO F 24";"Valido";"-";"2023";"179"
"2023";"COMPETENZA";"Mandato";"02/05/2023";"194";"Pagamento fattura n.AP07180831 del 27/04/2023  - Rif. Reversale n. 355";"27 - Spese telefoniche, fax e collegamento Internet";"0 - Spese telefoniche, fax e collegamento Internet";"VODAFONE ITALIA S.p.A. ";"29,28";"5,28";"-";"0,00";"24,00";"BONIFICO BANCARIO";"Valido";"-";"2023";"178"
"2023";"COMPETENZA";"Mandato";"02/05/2023";"193";"Pagamento fattura n.04/PA del 28/04/2023  - Rif. Reversale n. 354";"24 - Menutenzioni e riparazioni ordinarie: macchine, mobili e pulizie sede";"0 - Menutenzioni e riparazioni ordinarie: macchine, mobili e pulizie sede";"I.P.S.U. DI ZONTA CALLIGARIS ANNAMARIA & C SAS  ";"530,70";"95,70";"-";"0,00";"435,00";"BONIFICO BANCARIO";"Valido";"-";"2023";"177"
"2023";"COMPETENZA";"Mandato";"28/04/2023";"192";"Pagamento fattura n.288/E del 26/04/2023  - Rif. Reversale n. 352";"20 - Spese di rappresentanza";"0 - Spese di rappresentanza";"TELEQUATTRO SRL A SOCIO UNICO ";"1.016,75";"183,35";"-";"0,00";"833,40";"BONIFICO BANCARIO";"Valido";"-";"2023";"176"
"2023";"COMPETENZA";"Mandato";"27/04/2023";"191";"Pagamento fattura n.712300303358 del 30/03/2023  - Rif. Reversale n. 349";"31 - Energia elettrica, acqua e gas";"0 - Energia elettrica, acqua e gas";"HERA COMM. SRL  ";"1,33";"1,33";"-";"0,00";"0,00";"REVERSALE VINCOLATA A MANDATI";"Valido";"-";"2023";"175"
"2023";"COMPETENZA";"Mandato";"27/04/2023";"190";"Pagamento fattura n.712300303358 del 30/03/2023 ";"31 - Energia elettrica, acqua e gas";"0 - Energia elettrica, acqua e gas";"HERA COMM. SRL  ";"13,34";"0,00";"-";"0,00";"13,34";"REGOLARIZZAZIONE";"Valido";"-";"2023";"175"
"2023";"COMPETENZA";"Mandato";"27/04/2023";"189";"Pagamento fattura n.712300303357 del 30/03/2023  - Rif. Reversale n. 348";"31 - Energia elettrica, acqua e gas";"0 - Energia elettrica, acqua e gas";"HERA COMM. SRL  ";"3,99";"3,99";"-";"0,00";"0,00";"REVERSALE VINCOLATA A MANDATI";"Valido";"-";"2023";"174"
"2023";"COMPETENZA";"Mandato";"27/04/2023";"188";"Pagamento fattura n.712300303357 del 30/03/2023 ";"31 - Energia elettrica, acqua e gas";"0 - Energia elettrica, acqua e gas";"HERA COMM. SRL  ";"30,69";"0,00";"-";"0,00";"30,69";"REGOLARIZZAZIONE";"Valido";"-";"2023";"174"
"2023";"COMPETENZA";"Mandato";"20/04/2023";"187";"CARTA CONTABILE 18";"36 - Commissioni e spese bancarie";"0 - Commissioni e spese bancarie";"MONTE DEI PASCHI DI SIENA  ";"2,00";"-";"0,00";"0,00";"2,00";"COPERTURA SOSPESI";"Valido";"-";"2023";"173"
"2023";"COMPETENZA";"Mandato";"20/04/2023";"186";"CARTA CONTABILE 17";"36 - Commissioni e spese bancarie";"0 - Commissioni e spese bancarie";"MONTE DEI PASCHI DI SIENA  ";"500,00";"-";"0,00";"0,00";"500,00";"COPERTURA SOSPESI";"Valido";"-";"2023";"172"
"2023";"COMPETENZA";"Mandato";"18/04/2023";"185";"IRAP STIPENDI APRILE";"13 - Contributi previdenziali e assistenziali";"0 - Contributi previdenziali e assistenziali";"AGENZIA DELLE ENTRATE  ";"576,56";"-";"0,00";"0,00";"576,56";"MODELLO F 24";"Valido";"-";"2023";"171"
"2023";"COMPETENZA";"Mandato";"18/04/2023";"184";"INPDAP APRILE";"13 - Contributi previdenziali e assistenziali";"0 - Contributi previdenziali e assistenziali";"AGENZIA DELLE ENTRATE  ";"6,78";"-";"0,00";"0,00";"6,78";"MODELLO F 24";"Valido";"-";"2023";"170"
"2023";"COMPETENZA";"Mandato";"18/04/2023";"183";"INPS ENTE APRILE";"13 - Contributi previdenziali e assistenziali";"0 - Contributi previdenziali e assistenziali";"AGENZIA DELLE ENTRATE  ";"1.615,03";"-";"0,00";"0,00";"1.615,03";"MODELLO F 24";"Valido";"-";"2023";"169"
"2023";"COMPETENZA";"Mandato";"18/04/2023";"182";"INPS STIPENDI APRILE - VNCOLATO A REVERSALI 321 E 323";"51 - Ritenute previdenziali e assistenziali lavoro dipendente";"0 - Ritenute previdenziali e assistenziali lavoro dipendente";"AGENZIA DELLE ENTRATE  ";"579,01";"-";"0,00";"0,00";"579,01";"MODELLO F 24";"Valido";"-";"2023";"168"
"2023";"COMPETENZA";"Mandato";"18/04/2023";"181";"IRPEF STIPENDI APRILE - VINCOLATO A REVERSALE 322 E 324";"47 - Ritenute erariali per lavoro dipendente";"0 - Ritenute erariali per lavoro dipendente";"AGENZIA DELLE ENTRATE  ";"1.751,51";"-";"0,00";"0,00";"1.751,51";"MODELLO F 24";"Valido";"-";"2023";"167"
"2023";"COMPETENZA";"Mandato";"18/04/2023";"180";"IVA SPLIT PAYMENT SU FATT. 412305155264 - HERA COMM. SRL - VINCOLATO A REVERSALE 329";"53 - Ritenute per conto terzi";"0 - Ritenute per conto terzi";"AGENZIA DELLE ENTRATE  ";"9,57";"-";"0,00";"0,00";"9,57";"MODELLO F 24";"Valido";"-";"2023";"166"
"2023";"COMPETENZA";"Mandato";"18/04/2023";"179";"IVA SPLIT PAYMENT SU FATT. 2023S3000409 - PROCED S.R.L. - VINCOLATO A REVERSALE 320";"53 - Ritenute per conto terzi";"0 - Ritenute per conto terzi";"AGENZIA DELLE ENTRATE  ";"597,03";"-";"0,00";"0,00";"597,03";"MODELLO F 24";"Valido";"-";"2023";"165"
"2023";"COMPETENZA";"Mandato";"18/04/2023";"178";"IVA SPLIT PAYMENT SU FATT. FT000269 - INFO.ERA SRL - VINCOLATO A REVERSALE 314";"53 - Ritenute per conto terzi";"0 - Ritenute per conto terzi";"AGENZIA DELLE ENTRATE  ";"247,81";"-";"0,00";"0,00";"247,81";"MODELLO F 24";"Valido";"-";"2023";"164"
"2023";"COMPETENZA";"Mandato";"18/04/2023";"177";"IVA SPLIT PAYMENT SU FATT. 0000024/F - STABILIMENTO TRIESTINO DI SORVEGLIANZA E CHIUSURA SRL - VINCOLATO A REVERSALE 301";"53 - Ritenute per conto terzi";"0 - Ritenute per conto terzi";"AGENZIA DELLE ENTRATE  ";"39,60";"-";"0,00";"0,00";"39,60";"MODELLO F 24";"Valido";"-";"2023";"163"
"2023";"COMPETENZA";"Mandato";"18/04/2023";"176";"IVA SPLIT PAYMENT SU FATT. 0000652434AMC12023 - MANZONI S.P.A. - VINCOLATO A REVERSALE 300";"53 - Ritenute per conto terzi";"0 - Ritenute per conto terzi";"AGENZIA DELLE ENTRATE  ";"35,20";"-";"0,00";"0,00";"35,20";"MODELLO F 24";"Valido";"-";"2023";"162"
"2023";"COMPETENZA";"Mandato";"18/04/2023";"175";"Pagamento fattura n.412305155264 del 13/04/2023  - Rif. Reversale n. 329";"31 - Energia elettrica, acqua e gas";"0 - Energia elettrica, acqua e gas";"HERA COMM. SRL  ";"202,30";"9,57";"-";"0,00";"192,73";"BONIFICO BANCARIO";"Valido";"-";"2023";"161"
"2023";"COMPETENZA";"Mandato";"14/04/2023";"174";"APRILE";"10 - Indennit� mensa";"0 - Indennit� mensa";"SANTIN COSTANZA";"47,61";"-";"0,00";"0,00";"47,61";"BONIFICO BANCARIO";"Valido";"VALUTA FISSA AL 27/04/2023 - SENZA SPESE A CARICO DEL BENEFICIARIO";"2023";"160"
"2023";"COMPETENZA";"Mandato";"14/04/2023";"173";"APRILE";"10 - Indennit� mensa";"0 - Indennit� mensa";"OZBOLT STEFANO";"42,32";"-";"0,00";"0,00";"42,32";"BONIFICO BANCARIO";"Valido";"VALUTA FISSA AL 27/04/2023 - SENZA SPESE A CARICO DEL BENEFICIARIO";"2023";"159"
"2023";"COMPETENZA";"Mandato";"14/04/2023";"172";"INENNITA' E STRAORDINARI APRILE";"9 - Indennit�, trattamento accessorio e lavoro straordinario";"0 - Indennit�, trattamento accessorio e lavoro straordinario";"OZBOLT STEFANO";"182,58";"-";"0,00";"0,00";"182,58";"BONIFICO BANCARIO";"Valido";"VALUTA FISSA AL 27/04/2023 - SENZA SPESE A CARICO DEL BENEFICIARIO";"2023";"158"
"2023";"COMPETENZA";"Mandato";"14/04/2023";"171";"STIPENDIO APRILE";"6 - Trattamento economico fondamentale";"0 - Trattamento economico fondamentale";"SANTIN COSTANZA";"4.448,68";"-";"410,65";"1.284,64";"2.753,39";"BONIFICO BANCARIO";"Valido";"VALUTA FISSA AL 27/04/2023 - SENZA SPESE A CARICO DEL BENEFICIARIO";"2023";"157"
"2023";"COMPETENZA";"Mandato";"14/04/2023";"170";"STIPENDIO APRILE";"6 - Trattamento economico fondamentale";"0 - Trattamento economico fondamentale";"OZBOLT STEFANO";"2.153,33";"-";"168,36";"466,87";"1.518,10";"BONIFICO BANCARIO";"Valido";"VALUTA FISSA AL 27/04/2023 - SENZA SPESE A CARICO DEL BENEFICIARIO";"2023";"156"
"2023";"COMPETENZA";"Mandato";"14/04/2023";"169";"Pagamento fattura n.2023S3000409 del 30/03/2023  - Rif. Reversale n. 320";"42 - Acquisto macchine, attrezzature per gli uffici e procedure informatiche";"0 - Acquisto macchine, attrezzature per gli uffici e procedure informatiche";"PROCED S.R.L.  ";"3.310,78";"597,03";"-";"0,00";"2.713,75";"BONIFICO BANCARIO";"Valido";"-";"2023";"155"
"2023";"COMPETENZA";"Mandato";"12/04/2023";"168";"Pagamento fattura n.FT000269 del 31/03/2023  - Rif. Reversale n. 314";"18 - Spese gestione fotocopiatrice, fax e sistema informatico";"0 - Spese gestione fotocopiatrice, fax e sistema informatico";"INFO.ERA SRL  ";"1.374,21";"247,81";"-";"0,00";"1.126,40";"BONIFICO BANCARIO";"Valido";"-";"2023";"154"
"2023";"COMPETENZA";"Mandato";"06/04/2023";"167";"RIMBORSO SPESE SANTIN AREZZO";"7 - Indennit� di trasferta e rimborsi spese";"0 - Indennit� di trasferta e rimborsi spese";"SANTIN COSTANZA";"565,20";"-";"0,00";"0,00";"565,20";"BONIFICO BANCARIO";"Valido";"SENZA SPESE A CARICO DEL BENEFICIARIO";"2023";"153"
"2023";"COMPETENZA";"Mandato";"06/04/2023";"166";"Pagamento fattura n.0000024/F del 31/03/2023  - Rif. Reversale n. 301";"24 - Menutenzioni e riparazioni ordinarie: macchine, mobili e pulizie sede";"0 - Menutenzioni e riparazioni ordinarie: macchine, mobili e pulizie sede";"STABILIMENTO TRIESTINO DI SORVEGLIANZA E CHIUSURA SRL  ";"219,60";"39,60";"-";"0,00";"180,00";"BONIFICO BANCARIO";"Valido";"-";"2023";"152"
"2023";"COMPETENZA";"Mandato";"06/04/2023";"165";"CARTA CONTABILE 16";"39 - Spese varie e emissione MAV";"0 - Spese varie e emissione MAV";"MONTE DEI PASCHI DI SIENA  ";"203,00";"-";"0,00";"0,00";"203,00";"COPERTURA SOSPESI";"Valido";"-";"2023";"151"
"2023";"COMPETENZA";"Mandato";"06/04/2023";"164";"Pagamento fattura n.0000652434AMC12023 del 31/03/2023  - Rif. Reversale n. 300";"20 - Spese di rappresentanza";"0 - Spese di rappresentanza";"MANZONI S.P.A.  ";"195,20";"35,20";"-";"0,00";"160,00";"BONIFICO BANCARIO";"Valido";"-";"2023";"150"
"2023";"COMPETENZA";"Mandato";"04/04/2023";"163";"IVA SPLIT PAYMENT SU FATT. FDE/0000145 - RICICLO SYSTEM SRL - VINCOLATO A REVERSALE 283";"53 - Ritenute per conto terzi";"0 - Ritenute per conto terzi";"AGENZIA DELLE ENTRATE  ";"11,44";"-";"0,00";"0,00";"11,44";"MODELLO F 24";"Valido";"-";"2023";"149"
"2023";"COMPETENZA";"Mandato";"04/04/2023";"162";"IVA SPLIT PAYMENT SU FATT. 230047/FEV - GRUPPO ILLIRIA SPA - VINCOLATO A REVERSALE 282";"53 - Ritenute per conto terzi";"0 - Ritenute per conto terzi";"AGENZIA DELLE ENTRATE  ";"14,46";"-";"0,00";"0,00";"14,46";"MODELLO F 24";"Valido";"-";"2023";"148"
"2023";"COMPETENZA";"Mandato";"04/04/2023";"161";"IVA SPLIT PAYMENT SU FATT. 03/PA - I.P.S.U. DI ZONTA CALLIGARIS ANNAMARIA & C SAS - VINCOLATO A REVERSALE 281";"53 - Ritenute per conto terzi";"0 - Ritenute per conto terzi";"AGENZIA DELLE ENTRATE  ";"95,70";"-";"0,00";"0,00";"95,70";"MODELLO F 24";"Valido";"-";"2023";"147"
"2023";"COMPETENZA";"Mandato";"04/04/2023";"160";"IVA SPLIT PAYMENT SU FATT. 4/59 - COOPERATIVA E.D.P. LA TRACCIA - VINCOLATO A REVERSALE 266";"53 - Ritenute per conto terzi";"0 - Ritenute per conto terzi";"AGENZIA DELLE ENTRATE  ";"332,64";"-";"0,00";"0,00";"332,64";"MODELLO F 24";"Valido";"-";"2023";"146"
"2023";"COMPETENZA";"Mandato";"04/04/2023";"159";"IVA SPLIT PAYMENT SU FATT. 141 - NORMA SRL - VINCOLATO A REVERSALE 265";"53 - Ritenute per conto terzi";"0 - Ritenute per conto terzi";"AGENZIA DELLE ENTRATE  ";"110,00";"-";"0,00";"0,00";"110,00";"MODELLO F 24";"Valido";"-";"2023";"145"
"2023";"COMPETENZA";"Mandato";"03/04/2023";"158";"Pagamento fattura n.FDE/0000145 del 31/03/2023  - Rif. Reversale n. 283";"18 - Spese gestione fotocopiatrice, fax e sistema informatico";"0 - Spese gestione fotocopiatrice, fax e sistema informatico";"RICICLO SYSTEM SRL ";"63,44";"11,44";"-";"0,00";"52,00";"BONIFICO BANCARIO";"Valido";"-";"2023";"144"
"2023";"COMPETENZA";"Mandato";"03/04/2023";"157";"Pagamento fattura n.230047/FEV del 31/03/2023  - Rif. Reversale n. 282";"20 - Spese di rappresentanza";"0 - Spese di rappresentanza";"GRUPPO ILLIRIA S.p.A. ";"159,01";"14,46";"-";"0,00";"144,55";"BONIFICO BANCARIO";"Valido";"-";"2023";"143"
"2023";"COMPETENZA";"Mandato";"03/04/2023";"156";"Pagamento fattura n.03/PA del 31/03/2023  - Rif. Reversale n. 281";"24 - Menutenzioni e riparazioni ordinarie: macchine, mobili e pulizie sede";"0 - Menutenzioni e riparazioni ordinarie: macchine, mobili e pulizie sede";"I.P.S.U. DI ZONTA CALLIGARIS ANNAMARIA & C SAS  ";"530,70";"95,70";"-";"0,00";"435,00";"BONIFICO BANCARIO";"Valido";"-";"2023";"142"
